Cogmind - Beta 16 --- EXPLORER MODE // 2025.11.19 @ 11:59:54 Player: K.K.Y. Result: Destroyed by RF-APE(z) with Makeshift Sword Performance ------------- Evolutions (3) 1500 Regions Visited (9) 1800 Robots Destroyed (71) 355 Value Destroyed (2496) 2496 Prototype IDs (30) 600 Alien Tech Used (0) 0 Bonus (770) 770 TOTAL SCORE: 7521 Bonus ------- Follower Combat Kills 170 Aligned with FarCom 300 Met Imprinter 300 Cogmind --------- Core Integrity 0/700 Matter 42/300 Energy 290/290 System Corruption 3% Temperature Cool (64) Movement Walking (210) Ox1 Location -7/Zion Parts ------- > --- POWER (2) -------- Reinforced Deuterium Engine > --- PROPULSION (5) --- Makeshift Leg > --- UTILITY (5) ------ Scrap Suit Medium Storage Unit > --- WEAPON (2) ------- Bore Cannon > --- INVENTORY (10) --- Humpback Superbattery (1500) Hacking Suite System Restoration Module Thief Drone Bay (0/3) Plasma Cutter Ripper CR-A16's Pointy Stick GAL Module Peak State ------------ > --- POWER ------------ Light Deuterium Engine Light Nuclear Core > --- PROPULSION ------- Cesium-ion Thruster Cesium-ion Thruster Cesium-ion Thruster Improved VTOL Module Xenon Bombardment Thruster > --- UTILITY ---------- Improved Cooling System Medium Storage Unit Advanced Weight Redist. System Transmission Jammer Makeshift System Shield > --- WEAPON ----------- Arc Projector Precision Beam Rifle > --- INVENTORY -------- Scrap Suit Humpback Superbattery Terrain Scanner Hacking Suite Thief Drone Bay Mining Laser Plasma Cutter [Rating: 50] Favorites ----------- Power Light Nuclear Core Engine Reinforced Deuterium Engine Power Core Light Nuclear Core Propulsion Carbon-fiber Leg Treads Light Treads Leg Carbon-fiber Leg Flight Unit Improved Flight Unit Utility Medium Storage Unit Device Advanced Weight Redist. System Storage Medium Storage Unit Processor Machine Analyzer Hackware Makeshift System Shield Protection Improved Heavy Armor Plating Weapon Heavy Machine Gun Energy Gun EM Pulse Gun Ballistic Gun Heavy Machine Gun Ballistic Cannon Gauss Cannon Special Weapon Mining Laser Impact Weapon Heavy Flail Slashing Weapon Chainsword Build | -11 -10 -10 -10 -9 -8 -7 -7 -7 -7 ------- Run | Yrd Mat Min Exi Min Mat Fac Low Low Zio Slots Evolved 7 | . 1 . . . 4 2 . . . Power 1 | . . . . . 1 . . . . Propulsion 3 | . 1 . . . 1 1 . . . Utility 3 | . . . . . 2 1 . . . Weapon . | . . . . . . . . . . Parts Attached 80 | 7 7 . 3 1 22 16 14 6 4 Power 18 | 1 1 . 1 1 7 2 3 2 . Engine 11 | 1 1 . 1 1 4 1 1 1 . Core 7 | . . . . . 3 1 2 1 . Reactor . | . . . . . . . . . . Propulsion 25 | 2 4 . 1 . 3 5 6 2 2 Treads 1 | . . . . . . . . 1 . Leg 10 | 2 1 . . . . . 4 1 2 Wheel . | . . . . . . . . . . Hover . | . . . . . . . . . . Flight 14 | . 3 . 1 . 3 5 2 . . Utility 15 | 2 1 . 1 . 4 3 2 2 . Device 7 | . 1 . 1 . 2 2 . 1 . Storage 3 | 1 . . . . . . 1 1 . Processor 1 | . . . . . . 1 . . . Hackware 1 | . . . . . 1 . . . . Protection 3 | 1 . . . . 1 . 1 . . Artifact . | . . . . . . . . . . Weapon 22 | 2 1 . . . 8 6 3 . 2 Energy Gun 10 | 2 . . . . 5 3 . . . Energy Cannon . | . . . . . . . . . . Ballistic Gun 4 | . . . . . 2 . 2 . . Ballistic Cannon 4 | . 1 . . . . . 1 . 2 Launcher . | . . . . . . . . . . Special Weapon 2 | . . . . . . 2 . . . Impact Weapon 1 | . . . . . 1 . . . . Slashing Weapon 1 | . . . . . . 1 . . . Piercing Weapon . | . . . . . . . . . . Special Melee Weapon . | . . . . . . . . . . Unidentified Prototypes 5 | . 1 . 1 . 3 . . . . Parts Lost 34 | . 2 1 . . 7 8 5 6 5 Power 9 | . 1 1 . . 1 2 1 2 1 Propulsion 13 | . . . . . 3 3 2 3 2 Utility 5 | . . . . . 1 1 . 1 2 Weapon 7 | . 1 . . . 2 2 2 . . Highest Loss Streak 5 | . 1 1 . . 3 5 5 3 4 To Critical Strikes 1 | . . . . . . . 1 . . Average Backups 8 | 1 4 9 8 8 8 8 7 8 8 Power . | . . 1 . . . . . . . Propulsion . | . 1 1 . . . . . . . Utility 5 | . 2 4 5 6 6 6 6 6 5 Weapon 1 | . 1 1 1 1 1 1 . 1 2 Tool/Special . | . . . . . . . . . . Unused Backups 13 | . . . 1 . 1 . 2 . 9 Power . | . . . . . . . . . . Propulsion . | . . . . . . . . . . Utility 7 | . . . 1 . 1 . . . 5 Weapon 6 | . . . . . . . 2 . 4 Tool/Special . | . . . . . . . . . . Average Slot Usage (%) 76 | . 85 85 85 87 71 78 77 76 68 Engine 6 | . 5 10 11 12 4 6 5 6 7 Core 5 | . . . . . 6 4 6 7 6 Leg 13 | . 15 . . . . . 19 16 12 Flight 7 | . 19 37 37 37 18 27 3 . . Device 10 | . 4 12 11 12 9 12 7 11 13 Storage 7 | . 12 12 12 12 8 7 7 7 7 Processor 5 | . . . . . . 4 7 7 6 Protection 3 | . 7 . . . 4 . 6 1 . Energy Gun 2 | . 16 . . . 8 10 . . . Ballistic Gun 5 | . . . . . 2 . 9 7 . Ballistic Cannon 6 | . 2 12 12 12 . . 3 7 12 Peak Build Rating 50 | 7 15 16 21 17 36 50 47 46 45 Average Rating 37 | 3 11 15 17 17 27 38 41 43 43 On Entrance 22 | . 7 15 15 17 17 32 32 45 43 Avg Prop Armor Cover (%) 5 | . . . . . . . 2 5 . Naked Turns . | . . . . . . . . . . Heaviest Build 66 | 20 20 16 20 16 27 31 51 66 61 Greatest Support 59 | 20 30 21 21 21 26 38 59 59 39 Greatest Overweight (x) 6 | . 3 . 1 . 1 1 6 2 5 Average Overweight (x) . | . . . . . . . . . 1 Largest Inventory Capacity 10 | 10 10 10 10 10 10 10 10 10 10 Average Capacity 9 | 7 10 10 10 10 10 10 10 10 10 Most Carried 10 | 5 10 10 10 10 10 10 10 10 10 Average Carried 9 | 1 4 9 9 10 9 9 9 9 10 Final Capacity 10 | 10 10 10 10 10 10 10 10 10 10 Final Carried 10 | . 9 10 10 10 10 10 10 10 10 Scrap Suit Usage (%) 22 | . . . . . . . . 66 16 Parts Cannibalized 6 | . . . . . . . . 5 1 Class Distribution -------------------- 64% | Hacker-Mutant 29% | Scavenger-Mutant 5% | Hacker-Sprinter Dominant Class ---------------- Hacker-Mutant | -10/Materials Hacker-Mutant | -10/Mines Hacker-Mutant | -10/Exiles Hacker-Mutant | -9/Mines Hacker-Mutant | -8/Materials Hacker-Sprinter | -7/Factory Scavenger-Mutant | -7/Lower Caves Hacker-Mutant | -7/Lower Caves Hacker-Mutant | -7/Zion Resources | -11 -10 -10 -10 -9 -8 -7 -7 -7 -7 ----------- Run | Yrd Mat Min Exi Min Mat Fac Low Low Zio Matter Collected 2015 | 140 245 3 . 122 358 99 394 550 104 Remotely . | . . . . . . . . . . Salvage Created 2590 | . 363 15 . 86 871 185 335 571 164 Parts 127 | . 23 2 . 6 46 9 17 17 7 Haulers Intercepted 3 | . 2 . . . 1 . . . . Recyclers Shooed . | . . . . . . . . . . Parts Field Recycled . | . . . . . . . . . . Retrieved Matter . | . . . . . . . . . . Parts Self-Destructed . | . . . . . . . . . . Prevented . | . . . . . . . . . . Parts Restored . | . . . . . . . . . . Kills | -11 -10 -10 -10 -9 -8 -7 -7 -7 -7 ------- Run | Yrd Mat Min Exi Min Mat Fac Low Low Zio Combat Hostiles Destroyed 62 | . 9 2 . 4 17 4 8 15 3 Melee 1 | . . . . . . . 1 . . Guns 34 | . 4 . . . 16 4 4 6 . Cannons 26 | . 5 2 . 4 . . 3 9 3 AOE 1 | . . . . . 1 . . . . Classes Destroyed 11 | . 3 . . . 3 2 2 . 1 Hauler 3 | . 2 . . . 1 . . . . Mechanic 1 | . . . . . . 1 . . . Watcher 1 | . . . . . . 1 . . . Swarmer 22 | . 4 2 . 2 3 3 2 6 . Grunt 20 | . 5 . . 2 7 1 3 2 . Brawler 3 | . . . . . . . 1 2 . Duelist 2 | . . . . . 1 . . 1 . Sentry 7 | . . . . . 5 . 1 1 . Hunter 1 | . . . . . 1 . . . . Zionite 3 | . . . . . . . . . 3 Thug 1 | . . . . . . . . 1 . Butcher 2 | . . . . . . . . 2 . Mutant 5 | . . . . . . . 1 1 3 Best Kill Streak 6 | . 6 2 . 2 6 2 2 4 2 Combat Bots Only 6 | . 5 2 . 2 6 1 2 4 2 Max Kills in Single Turn 1 | . 1 1 . 1 1 1 1 1 1 Gunslinging . | . . . . . . . . . . Exploded 1 | . . . . . 1 . . . . Melee 1 | . . . . . . . 1 . . Uniques/NPCs Destroyed . | . . . . . . . . . . Combat | -11 -10 -10 -10 -9 -8 -7 -7 -7 -7 -------- Run | Yrd Mat Min Exi Min Mat Fac Low Low Zio Hostile Shots Fired 627 | . 52 10 . 15 163 99 64 116 108 Missed 187 | . 21 4 . 7 48 35 19 21 32 Hits 440 | . 31 6 . 8 115 64 45 95 76 Melee 28 | . . . . . 1 . . 14 13 Projectile 412 | . 31 6 . 8 114 64 45 81 63 Critical Strikes 21 | . . . . . 4 2 1 7 7 Actively Blocked 1 | . . . . . 1 . . . . Part Disruptions 1 | . . . . . . . . . 1 Damage Taken 4788 | . 229 28 . 50 1012 805 396 1280 988 Core 1043 | . 42 4 . 17 280 173 125 167 235 Absorbed by Shields . | . . . . . . . . . . Redirected to Shielding 50 | . . . . . 50 . . . . Ignored by Resistances 2789 | . 148 20 . 34 611 480 247 751 498 Regen/Repaired (Parts) 55 | . . . . . . . . 45 10 Core Remaining (%) 74 | 100 . . . 74 49 . . . . Volleys Fired 260 | . 33 6 . 12 81 22 27 51 28 Largest 2 | . 2 1 . 1 2 2 2 2 2 Hottest 116 | . 80 30 . 30 111 116 70 70 96 Shots Fired 383 | . 37 6 . 12 108 33 46 102 39 Gun 240 | . 25 . . . 95 31 38 51 . Cannon 141 | . 12 6 . 12 13 . 8 51 39 Launcher . | . . . . . . . . . . Special 2 | . . . . . . 2 . . . Kinetic 277 | . 12 6 . 12 68 . 38 102 39 Thermal 21 | . . . . . 10 11 . . . Explosive . | . . . . . . . . . . Electromagnetic 85 | . 25 . . . 30 22 8 . . Robot Hit Streak 54 | . 8 5 . 17 54 6 30 18 12 Robot Miss Streak 3 | . 3 1 . . 2 2 2 2 1 Penetration Max 2 | . . . . . . . . . 2 Secondary Targets 2 | . . . . . 1 . 1 . . Max Gunslinging Chain 1 | . . . . . 1 . 1 . . Shots Hit Robots 317 | . 29 5 . 12 97 23 40 81 30 Core Hits 136 | . 15 1 . 4 47 9 17 31 12 Critical Kills 6 | . . . . . . . . 1 5 Critical Parts Destroyed 14 | . . . . . . . . . 14 Critical Strikes 28 | . 2 . . . 1 . . 6 19 Destroy 20 | . . . . . . . . 1 19 Blast 6 | . 1 . . . . . . 5 . Corrupt 2 | . 1 . . . 1 . . . . Melee Attacks 4 | . . . . . . . 4 . . Impact . | . . . . . . . . . . Slashing 4 | . . . . . . . 4 . . Piercing . | . . . . . . . . . . Sneak Attacks . | . . . . . . . . . . Combat Hostiles . | . . . . . . . . . . Follow-up Attacks . | . . . . . . . . . . Damage Inflicted 6573 | . 504 86 . 180 1512 582 917 2020 772 Guns 3309 | . 277 . . . 1164 386 576 906 . Cannons 2799 | . 191 86 . 180 231 . 225 1114 772 Explosions 349 | . 36 . . . 117 196 . . . Melee 116 | . . . . . . . 116 . . Ramming . | . . . . . . . . . . Kinetic 4665 | . 191 86 . 180 679 . 737 2020 772 Thermal 629 | . 36 . . . 246 347 . . . Explosive . | . . . . . . . . . . Electromagnetic 1163 | . 277 . . . 587 235 64 . . Impact . | . . . . . . . . . . Slashing 116 | . . . . . . . 116 . . Piercing . | . . . . . . . . . . Highest Corruption 3 | . . . . . . . . . 3 Average Corruption 1 | . . . . . . . . . 1 Corruption Purged . | . . . . . . . . . . Corruption Blocked . | . . . . . . . . . . Effects 2 | . . . . . . . . . 2 Message Errors 1 | . . . . . . . . . 1 Energy Discharges 1 | . . . . . . . . . 1 Overload Shots . | . . . . . . . . . . Overflow Damage 209 | . 11 13 . 13 . 148 17 . 7 Projectiles 38 | . 5 13 . 13 . . . . 7 Explosions 154 | . 6 . . . . 148 . . . Melee 17 | . . . . . . . 17 . . Knockbacks 25 | . 2 1 . 2 4 . . 11 5 Impact . | . . . . . . . . . . Kinetic 24 | . 2 1 . 2 4 . . 10 5 Secondary 1 | . . . . . . . . 1 . Self-Inflicted Damage 328 | . . . . . 18 310 . . . Shots 7 | . . . . . 1 6 . . . Rammed . | . . . . . . . . . . Targets Rammed . | . . . . . . . . . . Kicked . | . . . . . . . . . . Crushed . | . . . . . . . . . . Highest Temperature 534 | . 60 . . 24 237 84 201 480 534 Average Temperature 120 | . 22 . . 11 83 22 73 174 197 Received Heat Transfer 1620 | . 141 . . 30 450 207 141 414 237 Effects 22 | . . . . . . . . 7 15 Shutdowns 9 | . . . . . . . . 6 3 Energy Bleed 1 | . . . . . . . . . 1 Interference 6 | . . . . . . . . . 6 Matter Decay 2 | . . . . . . . . . 2 Short Circuit 2 | . . . . . . . . 1 1 Damage (major) 1 | . . . . . . . . . 1 Damage (core) 1 | . . . . . . . . . 1 Siege Activations . | . . . . . . . . . . Martial Activations . | . . . . . . . . . . Shielding Activations . | . . . . . . . . . . Robots Disrupted 1 | . . . . . . 1 . . . Combat Hostiles 1 | . . . . . . 1 . . . Robots Corrupted . | . . . . . . . . . . Combat Hostiles . | . . . . . . . . . . Parts Fried 2 | . 2 . . . . . . . . Impact Corruptions . | . . . . . . . . . . Robots Melted . | . . . . . . . . . . Combat Hostiles . | . . . . . . . . . . Parts Melted 2 | . . . . . 1 1 . . . Heat Transferred 966 | . 50 . . . 483 433 . . . Parts Sabotaged . | . . . . . . . . . . Parts Stolen . | . . . . . . . . . . Parts Stripped . | . . . . . . . . . . Power Chain Reactions 2 | . 1 . . . 1 . . . . Alert | -11 -10 -10 -10 -9 -8 -7 -7 -7 -7 ------- Run | Yrd Mat Min Exi Min Mat Fac Low Low Zio Maximum Alert Level 1 | . . . . . 1 . . . . Low Security (%) 98 | 100 100 100 . 100 97 100 . . . Level 1 1 | . . . . . 2 . . . . Level 2 . | . . . . . . . . . . Level 3 . | . . . . . . . . . . Level 4 . | . . . . . . . . . . Level 5 . | . . . . . . . . . . High Security . | . . . . . . . . . . Max Security . | . . . . . . . . . . Peak Influence 207 | . 112 35 . 74 207 145 . . . Initial 18 | . . 18 . . . . . . . Average 40 | . 20 4 . 13 86 24 . . . Influence Increases 1797 | . 267 50 . 104 558 338 170 310 . Destroy 0b10 Robot/C 1200 | . 180 40 . 80 360 140 140 260 . Destroy 0b10 Robot/NC 30 | . 10 . . . 5 10 . 5 . Destroy Leader 268 | . 44 10 . 20 102 32 30 30 . Successful Hack 83 | . 15 . . . 22 46 . . . Disable Machine 44 | . . . . 4 4 36 . . . Destroy Structure 22 | . 3 . . . 5 14 . . . Partial Spotted 45 | . 15 . . . 15 15 . . . Lose Combat Pursuer 105 | . . . . . 45 45 . 15 . Influence Decreases 1797 | . 200 82 35 104 558 248 260 310 . Entered New Map 131 | . . 49 35 . . . 47 . . Time Decay 1346 | . 167 33 . 104 448 141 173 280 . Lost Part 187 | . . . . . 70 47 40 30 . Lost Ally 100 | . . . . . 40 60 . . . Purge Threat 33 | . 33 . . . . . . . . Squads Dispatched 9 | . 1 . . . 3 4 . 1 . Investigation 6 | . 1 . . . 2 3 . . . Extermination . | . . . . . . . . . . Reinforcement 2 | . . . . . 1 1 . . . Assault 1 | . . . . . . . . 1 . Garrison . | . . . . . . . . . . Intercept . | . . . . . . . . . . Searches Triggered . | . . . . . . . . . . Construction Impeded . | . . . . . . . . . . Haulers Reinforced . | . . . . . . . . . . Active Scanning Responses . | . . . . . . . . . . Cargo Convoy Interrupts . | . . . . . . . . . . Stealth | -11 -10 -10 -10 -9 -8 -7 -7 -7 -7 --------- Run | Yrd Mat Min Exi Min Mat Fac Low Low Zio Distress Signals 4 | . 1 . . . 2 1 . . . Communications Jammed . | . . . . . . . . . . Distress Signals . | . . . . . . . . . . Times Spotted 120 | . 14 2 . 4 32 16 9 30 13 Peak Tracking Total 8 | . 5 2 . 2 6 7 3 5 8 Tactical Retreats 16 | . . . . . 2 2 . 11 1 Traps | -11 -10 -10 -10 -9 -8 -7 -7 -7 -7 ------- Run | Yrd Mat Min Exi Min Mat Fac Low Low Zio Traps Triggered 2 | . 1 . . . 1 . . . . Indirectly . | . . . . . . . . . . Trap Hack Attempts . | . . . . . . . . . . Triggered . | . . . . . . . . . . Disarmed . | . . . . . . . . . . Reprogrammed . | . . . . . . . . . . Reused . | . . . . . . . . . . Traps Extracted . | . . . . . . . . . . Installed . | . . . . . . . . . . Triggered . | . . . . . . . . . . Machines | -11 -10 -10 -10 -9 -8 -7 -7 -7 -7 ---------- Run | Yrd Mat Min Exi Min Mat Fac Low Low Zio Machines Disabled 14 | . . . . 1 1 9 1 . 2 Max in Single Turn 9 | . . . . 1 . 9 1 . 1 Machines Repaired . | . . . . . . . . . . Machines Dismantled . | . . . . . . . . . . Machines Sabotaged . | . . . . . . . . . . Overloaded Fab Kills . | . . . . . . . . . . Hacking | -11 -10 -10 -10 -9 -8 -7 -7 -7 -7 --------- Run | Yrd Mat Min Exi Min Mat Fac Low Low Zio Machines Accessed 26 | . 6 1 1 2 9 5 2 . . Terminals 19 | . 6 . . 2 8 2 1 . . Fabricators 2 | . . . . . . 2 . . . Repair Stations . | . . . . . . . . . . Recycling Units . | . . . . . . . . . . Scanalyzers 2 | . . . . . 1 1 . . . Garrison Access . | . . . . . . . . . . Total Hacks 64 | . 14 1 1 4 30 11 3 . . Successful 43 | . 10 1 1 1 23 4 3 . . Failed 21 | . 4 . . 3 7 7 . . . Catastrophic 4 | . 1 . . . 1 2 . . . Database Lockouts . | . . . . . . . . . . Manual 4 | . . . 1 . 2 . . . 1 Terminals 50 | . 14 . . 4 25 5 2 . . Fabricators 3 | . . . . . . 3 . . . Repair Stations . | . . . . . . . . . . Recycling Units . | . . . . . . . . . . Scanalyzers 8 | . . . . . 5 3 . . . Garrison Access . | . . . . . . . . . . Terminal Hacks 34 | . 10 1 1 1 18 . 3 . . Record 2 | . . . . . . . 2 . . Robot Analysis 2 | . 1 . . . 1 . . . . Prototype ID Bank 1 | . 1 . . . . . . . . Open Door 2 | . . 1 . . . . 1 . . Branch Access Points 2 | . 1 . . . 1 . . . . Emergency Access Points 2 | . 1 . . . 1 . . . . Scanalyzer Index 2 | . 1 . . . 1 . . . . Unreport Threat 1 | . 1 . . . . . . . . Dispatch Records 1 | . . . . . 1 . . . . Maintenance Status 1 | . . . . . 1 . . . . Security Status 2 | . . . . . 2 . . . . Transport Status 4 | . 2 . . . 2 . . . . Hauler Manifests 1 | . . . . . 1 . . . . Registered Components 2 | . 1 . . . 1 . . . . Zone Layout 8 | . 1 . . 1 6 . . . . Proto ID Catalog 1 | . . . 1 . . . . . . Fabricator Hacks 2 | . . . . . . 2 . . . Network Status 1 | . . . . . . 1 . . . Build 1 | . . . . . . 1 . . . Repair Station Hacks . | . . . . . . . . . . Recycling Unit Hacks . | . . . . . . . . . . Scanalyzer 7 | . . . . . 5 2 . . . Retrieve Study 7 | . . . . . 5 2 . . . Garrison Access Hacks . | . . . . . . . . . . Unauthorized Hacks . | . . . . . . . . . . Terminals . | . . . . . . . . . . Fabricators . | . . . . . . . . . . Repair Stations . | . . . . . . . . . . Recycling Units . | . . . . . . . . . . Scanalyzers . | . . . . . . . . . . Garrison Access . | . . . . . . . . . . Data Cores Recovered . | . . . . . . . . . . Used . | . . . . . . . . . . Hacking Detections 19 | . 5 . . 1 7 5 1 . . Full Trace Events 7 | . 1 . . 1 2 3 . . . Feedback Events . | . . . . . . . . . . Feedback Blocked . | . . . . . . . . . . Robot Schematics Acquired . | . . . . . . . . . . Robots Built 3 | . . . . . . 3 . . . Authchips . | . . . . . . . . . . Time 49 | . . . . . . 49 . . . Total Robot Build Rating 6 | . . . . . . 6 . . . Part Schematics Acquired . | . . . . . . . . . . Parts Built . | . . . . . . . . . . Authchips . | . . . . . . . . . . Time . | . . . . . . . . . . Total Part Build Rating . | . . . . . . . . . . Part Studies Acquired 7 | . . . . . 5 2 . . . Parts Repaired . | . . . . . . . . . . Time . | . . . . . . . . . . Parts Recycled . | . . . . . . . . . . Recycled Matter . | . . . . . . . . . . Retrieved Matter . | . . . . . . . . . . Retrieved Components . | . . . . . . . . . . Parts Scanalyzed . | . . . . . . . . . . Part Schematics Acquired . | . . . . . . . . . . Parts Damaged . | . . . . . . . . . . Bothacking | -11 -10 -10 -10 -9 -8 -7 -7 -7 -7 ------------ Run | Yrd Mat Min Exi Min Mat Fac Low Low Zio Used RIF Installer . | . . . . . . . . . . Robots Hacked . | . . . . . . . . . . Non-combat . | . . . . . . . . . . Combat . | . . . . . . . . . . Robot Hacks Applied . | . . . . . . . . . . Relay Couplers Released . | . . . . . . . . . . Fabnet Peak Effective % . | . . . . . . . . . . Robots Rewired 1 | . . . . . . . . 1 . Allies Hacked . | . . . . . . . . . . Hacks Repelled . | . . . . . . . . . . Allies | -11 -10 -10 -10 -9 -8 -7 -7 -7 -7 -------- Run | Yrd Mat Min Exi Min Mat Fac Low Low Zio Total Allies 6 | . . . . 2 . 3 . 1 . Largest Group 3 | . . . . 2 2 3 . 1 . Highest-Rated Group 49 | . . . . 49 49 30 . 20 . Highest-Rated Ally 31 | . . . . 31 31 10 . 20 . Total Orders . | . . . . . . . . . . Ally Attacks 26 | . . . . . 6 7 . 13 . Total Damage 518 | . . . . . 42 169 . 307 . Kills 8 | . . . . . 1 3 . 4 . Allies Corrupted . | . . . . . . . . . . Allies Melted . | . . . . . . . . . . Intel | -11 -10 -10 -10 -9 -8 -7 -7 -7 -7 ------- Run | Yrd Mat Min Exi Min Mat Fac Low Low Zio Active Infowar (turns) 5646 | . . . . . . 159 1913 2523 1051 Machine Analysis 5622 | . . . . . . 135 1913 2523 1051 Jamming 65 | . . . . . . 65 . . . Robot Analysis Total 2 | . 1 . . . 1 . . . . Derelict Logs Recovered 6 | . . 1 . . . . 2 2 1 Drone Launches 3 | . . . 3 . . . . . . Drone Recoveries . | . . . . . . . . . . Exploration | -11 -10 -10 -10 -9 -8 -7 -7 -7 -7 ------------- Run | Yrd Mat Min Exi Min Mat Fac Low Low Zio Turns Passed 8570 | 44 499 150 216 378 707 311 2524 2523 1218 Spaces Moved 6805 | 42 630 360 350 814 689 518 1584 1311 507 Core 75 | 26 . . . . . . 9 . 40 Treads 21 | . . . . . . . . 21 . Legs 3314 | 16 167 . . . . . 1374 1290 467 Wheels . | . . . . . . . . . . Hover . | . . . . . . . . . . Flight 3395 | . 463 360 350 814 689 518 201 . . Fastest Speed 24 | 50 34 34 34 34 27 24 32 120 190 Average Speed 105 | 76 57 34 35 34 57 31 150 177 196 Slowest Speed 352 | 120 250 34 104 34 105 112 352 260 300 Overloaded Moves . | . . . . . . . . . . Propulsion Burnouts . | . . . . . . . . . . Robots Hopped 5 | . 3 1 . . 1 . . . . Potential Cave-ins . | . . . . . . . . . . Cave-ins Triggered . | . . . . . . . . . . Exploration Rate (%) 65 | 4 84 68 70 99 71 17 99 88 58 Regions Visited 9 Branch Regions 6 Pre-discovered Areas 1 | . . . . 1 . . . . . Known Exits Taken 9 | 1 1 1 1 1 1 1 1 1 . Unknown Exits Taken . | . . . . . . . . . . Scrap Searched 8 | . . 1 . 1 . . 2 3 1 Spaces Dug . | . . . . . . . . . . Terrain Destroyed 34 | . 3 . . . 5 13 1 12 . Melee . | . . . . . . . . . . Projectile 13 | . . . . . . . 1 12 . AOE 21 | . 3 . . . 5 13 . . . Terrain Rammed . | . . . . . . . . . . Walls Destroyed . | . . . . . . . . . . Machines Disabled . | . . . . . . . . . . Actions | -11 -10 -10 -10 -9 -8 -7 -7 -7 -7 --------- Run | Yrd Mat Min Exi Min Mat Fac Low Low Zio Total 7819 | 53 731 380 444 903 898 626 1676 1415 693 Wait 571 | . 44 12 85 76 84 63 24 38 145 Move 6786 | 41 623 357 349 813 686 517 1583 1310 507 Hop 5 | . 3 1 . . 1 . . . . Pick Up 34 | 5 13 2 2 . 1 . 6 2 3 Fast Attach 58 | 2 1 . . . 22 12 13 5 3 Attach 20 | 5 6 . 3 . . 2 3 1 . Detach 9 | . 5 . 2 . . 2 . . . Swap 15 | . . . 1 1 5 2 3 1 2 Drop 52 | . 3 2 2 1 18 6 12 3 5 Fire 260 | . 33 6 . 12 81 22 27 51 28 Melee 4 | . . . . . . . 4 . . Ram . | . . . . . . . . . . Kick . | . . . . . . . . . . Crush . | . . . . . . . . . . Escape Stasis . | . . . . . . . . . . Rewire 5 | . . . . . . . 1 4 . Trap . | . . . . . . . . . . Miscellaneous . | . . . . . . . . . . Route ------- -11/Scrapyard -10/Materials (discovered 4 exits: *Mat x3 / *Min) -10/Mines (discovered 3 exits: *Mat x2 / *Exi) -10/Exiles -9/Mines (discovered 2 exits: *Mat x2) -8/Materials (discovered 2 exits: *Fac x2) -7/Factory (discovered 2 exits: *Low x2) -7/Lower Caves -7/Lower Caves (discovered 2 exits: *Fac / *Zio) -7/Zion (discovered 1 exit: Pro) History --------- Turn | Location | Event 5 | -11/Scrapyard | Identified exit to Materials 5 | -11/Scrapyard | Discovered exit to Materials (range 16) 45 | -11/Scrapyard | Entered Materials 45 | -10/Materials | Evolved 1 slot: Propulsion x1 125 | -10/Materials | Identified exit to Mines 307 | -10/Materials | Build established: Hacker-Mutant 323 | -10/Materials | Identified exit to Materials 323 | -10/Materials | Discovered exit to Materials (range 10) 472 | -10/Materials | Discovered exit to Materials (range 15) 502 | -10/Materials | Discovered exit to Materials (range 3) 544 | -10/Materials | Entered Mines 601 | -10/Mines | Discovered exit to Materials (range 10) 638 | -10/Mines | Found the Drone Emporium 639 | -10/Mines | Found Prototype Device 663 | -10/Mines | Found a Scrap Suit stashed away for nefarious purposes 665 | -10/Mines | Found Scrap Suit 692 | -10/Mines | Deemed a non-threat by the Exiles lab entrance 692 | -10/Mines | Identified exit to Exiles 692 | -10/Mines | Discovered exit to Exiles (range 5) 694 | -10/Mines | Entered Exiles 705 | -10/Exiles | Met 8R-AWN 710 | -10/Exiles | Met EX-HEX 721 | -10/Exiles | Met EX-BIN 725 | -10/Exiles | Aligned with FarCom system 725 | -10/Exiles | Given EX-Vault access code 733 | -10/Exiles | Opened EX-Vault 735 | -10/Exiles | Found Superbattery 781 | -10/Exiles | Warned to stay clear of 0b10 Research branches 805 | -10/Exiles | Met EX-DEC 841 | -10/Exiles | Identified Thief Drone Bay 906 | -10/Exiles | Identified exit to Mines 906 | -10/Exiles | Discovered exit to Mines (range 14) 910 | -10/Exiles | Left Exiles lab with Superbattery 910 | -10/Exiles | Entered Mines 996 | -9/Mines | Learned location of Storage (-9) 1049 | -9/Mines | Received a Rocket Launcher from a helpful Derelict 1083 | -9/Mines | Identified exit to Materials 1083 | -9/Mines | Discovered exit to Materials (range 9) 1084 | -9/Mines | Discovered exit to Materials (range 14) 1288 | -9/Mines | Entered Materials 1288 | -8/Materials | Accompanied by 2 allies 1288 | -8/Materials | Evolved 4 slots: Power x1, Propulsion x1, Utility x2 1295 | -8/Materials | Led the pair of lost Derelicts to an unsafe place 1499 | -8/Materials | Lost 3 parts (1p1n1w) 1694 | -8/Materials | Identified exit to Factory 1694 | -8/Materials | Discovered exit to Factory (range 16) 1721 | -8/Materials | Core integrity fell below 50% 1993 | -8/Materials | Discovered exit to Factory (range 3) 1995 | -8/Materials | Entered Factory 1995 | -7/Factory | Evolved 2 slots: Propulsion x1, Utility x1 2166 | -7/Factory | Identified exit to Lower Caves 2166 | -7/Factory | Discovered exit to Lower Caves (range 6) 2227 | -7/Factory | Lost 5 parts (2p1n1u1w) 2238 | -7/Factory | Fabricated B-36 Bruiser? 2271 | -7/Factory | Discovered exit to Lower Caves (range 12) 2278 | -7/Factory | Lost 3 parts (2n1w) 2306 | -7/Factory | Entered Lower Caves 2370 | -7/Lower Caves | Lost 5 parts (1p2n2w) 2389 | -7/Lower Caves | Learned 4 Factory zone layouts 3097 | -7/Lower Caves | Attacked by a delusional Derelict stockpiling parts 3187 | -7/Lower Caves | Build established: Scavenger-Mutant 3718 | -7/Lower Caves | Attracted the attention of an 0b10 checkpoint 3791 | -7/Lower Caves | Learned Factory stockpile data 3903 | -7/Lower Caves | Identified exit to Lower Caves 3903 | -7/Lower Caves | Discovered exit to Lower Caves (range 6) 4830 | -7/Lower Caves | Entered another Lower Caves area 5045 | -7/Lower Caves | Learned Factory trap positions 5113 | -7/Lower Caves | Attracted the attention of an 0b10 outpost 5150 | -7/Lower Caves | Identified exit to Zion 5150 | -7/Lower Caves | Discovered exit to Zion (range 13) 5487 | -7/Lower Caves | Core integrity fell below 50% 5509 | -7/Lower Caves | Attacked by a faux Warlord 5552 | -7/Lower Caves | Lost 3 parts (2n1u) 5805 | -7/Lower Caves | Build established: Hacker-Mutant 6012 | -7/Lower Caves | Encountered a Warlord checkpoint 6273 | -7/Lower Caves | Identified exit to Factory 6273 | -7/Lower Caves | Discovered exit to Factory (range 15) 6283 | -7/Lower Caves | Learned 4 Factory zone layouts 7353 | -7/Lower Caves | Entered Zion 7405 | -7/Zion | Found CR-A16's Pointy Stick 7615 | -7/Zion | Loaded intel: 5 derelict terminal locations 7733 | -7/Zion | Found GAL Module 7825 | -7/Zion | Identified exit to Proximity Caves 8052 | -7/Zion | Received a visual enhancement algorithm 8053 | -7/Zion | Ran a visual enhancement algorithm 8303 | -7/Zion | Rebuked by Imprinter 8339 | -7/Zion | Attempted to imprint without authorization 8339 | -7/Zion | Attacked by Zionites 8407 | -7/Zion | Core integrity fell below 20% 8571 | -7/Zion | Destroyed by RF-APE(z) with Makeshift Sword Last Messages --------------- 08567_ T9-1ZE(z) overheating. 08567_ JB-1JL(z) overheating. 08568_ T9-1ZE(z) heat damages Broken Mak. Leg. 08568_ T9-1ZE(z) overheating. 08568_ RF-APE(z) pulls a Mak. Sword out of the Twisted Machinery. 08568_ JB-1JL(z) overheating. 08569_ T9-1ZE(z) overheating. 08569_ JB-1JL(z) overheating. 08569_ HV Slug penetrates RF-APE(z). 08569_ RF-APE(z) suffers critical hit (Destroy). 08569_ Destroyed Mak. Power Source. 08569_ Bore Cannon severed. 08570_ T9-1ZE(z) overheating. 08570_ JB-1JL(z) overheating. 08570_ Critical hit (Impale). 08570_ Mak. Leg destroyed. 08571_ T9-1ZE(z) heat damages Mak. Laser. 08571_ T9-1ZE(z) overheating. 08571_ JB-1JL(z) overheating. Map ----- +----------------------------------------------------+ | ??????????????????????????????" """""" | | ??????????????????????????????? | | ?????????????????????????????#" "" | | ???????????????????????????##"" """""" | | ??????????????????????????##""" """"" | | ?????????????????????????##""" """#"" " | | ?????????????????????#####""" """""" " | | ?????????????????????#""#""" """ "" " | | ?????????????????????#" " "" "" " | | ?????????????????????#" """ "" " | | ?????????????????????#" " " | | ?????????????????????#""#X " " | | ?????????????????????####### """" "" " | | ???????????????????????????### "" """""" " | | ???????????????????????????#"# """"""" # | | ????????????????????????????#" """"""" " | | ????????????????????????????##" "" | | ????????????????????????????##"" """ | | ???????????????????????????##"""" """"" | | ????????????????????????####""""" """""" | | ????????????????????????#"#""" """""" | | ????????????????#######??#""" " | | ????????????????#"""#"####" " | | ?????############"""""" "" " """ | | ?????""""""""" #""" zz"" "" "" " | | ????"""""""""" ###" @z """ " " | | ?????" #"#" zz% """""""""" " | | ??????"""" ##"" %"""""""#""""""" " | | ??????""""" """""##""##""""""" " " | | ??????""""" ""#"###""#""" """ " " | | ??????""""" *%""##"#?###"" """ " " | | ??????"""" ### [""#?##?????? "" " # | | ????"" #""" ""#????????? ? "" " | | ???#"""""""""" ##""c c""#?????????????? "" " | | ????"""""""""" #""" ""#?????????????? "" # | | ?????###########""" "##?????????????? ? " | | ???????????#####""#% ""#?????????????? ? ? | | ??????????##"""#### #""#?????????????? ????? | | ??????????#" #"##??????????????"" ????? | | ??????????#" #?"??????????????????????? | | ??????????#" #????????????????????????? | | ??????????## #### #????????????????????????? | | ???????????# #??######????????????????????????? | | ???????##### #####????????????????????????????? | | ???????""""" """""????????????????????????????? | | ?????######" !"######??????????????????????????? | | ?????# %%*%*!" #??????????????????????????? | | ?????# " [[ %"" #??????????????????????????? | | ?????#"""" % [%%=%" #??????????????????????????? | | ?????#"""" " """#??????????????????????????? | +----------------------------------------------------+ Best States ------------- Heat Dissipation 61 Energy Generation 30 Energy Capacity 505 Matter Stores 300 Matter Capacity 300 Sight Range 16 Terrain Scan Density 10 Jamming Range 12 Additional Mass Support 9 EM Shielding 2 Armor Coverage 600 Resistance: KI 35 Resistance: TH 35 Resistance: EX 35 Resistance: EM 35 Resistance: I 35 Resistance: S 35 Resistance: P 35 Core Shielding 20 Evasion (%) 65 Recoil Reduction 1 Offensive Hacking 20 Defensive Hacking 11 Item Schematics ----------------- None Robot Schematics ------------------ None Fabricated ------------ B-36 Bruiser | x3 | -7/Factory | Preloaded Repaired ---------- Nothing Studied --------- Nuclear Core | -8/Materials | Hacked Autogun | -8/Materials | Hacked Lgt. Assault Rifle | -8/Materials | Hacked Plasma Cutter | -8/Materials | Hacked Mining Laser | -8/Materials | Hacked Lgt. Nuclear Core | -7/Factory | Hacked Cesium-ion Thruster | -7/Factory | Hacked Alien Tech Used ----------------- None Achievements -------------- None Challenges ------------ None Game ------ Seed DisruptionSigixMesh Manual? 0 Play Time 00:56:10 Cumulative 115.9 hours Start 2025.11.19 @ 11:04:10 End 2025.11.19 @ 11:59:54 Sessions 1 Manual Loads 0 Difficulty Explorer Special Mode None Game No. 132 Rogue 0 Adventurer 0 Explorer 132 Win Type - Total 0 Types 0/0/0/0/0/0/0/0/0/0 Lore% 64 Gallery% 63 Achievement% 49 Wizard Run 0 Options --------- Layout 1 ASCII 0 Keyboard 0 Movement Mouse Keybinds 0 Fullscreen 1 Font 24/Smallcaps Map View 50x35 Zoom Use 0% Tactical HUD 1 Map Filters NONE Filters NONE Steam 1 RUN: 8021b762-9c65-408c-9bde-673313cee25f